[Event "Titled Tuesday Blitz March 29 Late 2022"]
[White "Cervantes Landeiro, Thalia"]
[Black "Petrova, Irina"]
[WhiteFideId "3520498"]
[BlackFideId "14124122"]
[WhiteElo "2021"]
[BlackElo "1993"]
[Result "1-0"]
[Round "09"]
[TimeControl "180+1"]
[Date "2022.03.30"]
[WhiteClock "0:00:09"]
[BlackClock "0:00:05"]

1. d4 {[%clk 0:03:00]}  d6 {[%clk 0:03:00]} 2. c4 {[%clk 0:03:01]}  e5 {[%clk 0:03:00]} 3. Nc3 {[%clk 0:02:59]}  exd4 {[%clk 0:03:00]} 4. Qxd4 {[%clk 0:02:58]}  Nc6 {[%clk 0:03:00]} 5. Qd1 {[%clk 0:02:57]}  Nf6 {[%clk 0:03:01]} 6. Nf3 {[%clk 0:02:56]}  Be6 {[%clk 0:02:59]} 7. e3 {[%clk 0:02:48]}  g6 {[%clk 0:02:59]} 8. b3 {[%clk 0:02:42]}  Bg7 {[%clk 0:02:58]} 9. Bb2 {[%clk 0:02:42]}  O-O {[%clk 0:02:46]} 10. Be2 {[%clk 0:02:37]}  d5 {[%clk 0:02:38]} 11. c5 {[%clk 0:02:20]}  Ne4 {[%clk 0:02:31]} 12. Rc1 {[%clk 0:02:14]}  Nxc5 {[%clk 0:02:19]} 13. O-O {[%clk 0:01:44]}  Ne4 {[%clk 0:02:14]} 14. Bb5 {[%clk 0:01:28]}  Ng5 {[%clk 0:01:59]} 15. Nxg5 {[%clk 0:01:20]}  Qxg5 {[%clk 0:02:00]} 16. Bxc6 {[%clk 0:01:19]}  bxc6 {[%clk 0:02:00]} 17. Na4 {[%clk 0:01:16]}  Bxb2 {[%clk 0:01:55]} 18. Nxb2 {[%clk 0:01:15]}  Bg4 {[%clk 0:01:49]} 19. f4 {[%clk 0:00:35]}  Qh5 {[%clk 0:01:09]} 20. Qd2 {[%clk 0:00:35]}  Bd7 {[%clk 0:01:07]} 21. Nd3 {[%clk 0:00:34]}  f6 {[%clk 0:00:57]} 22. Nc5 {[%clk 0:00:33]}  Bc8 {[%clk 0:00:57]} 23. Rf3 {[%clk 0:00:31]}  Re8 {[%clk 0:00:55]} 24. Qd4 {[%clk 0:00:24]}  Qf5 {[%clk 0:00:54]} 25. Nd3 {[%clk 0:00:19]}  Ba6 {[%clk 0:00:52]} 26. Nb4 {[%clk 0:00:18]}  Be2 {[%clk 0:00:48]} 27. Rf2 {[%clk 0:00:17]}  Bb5 {[%clk 0:00:42]} 28. Nxc6 {[%clk 0:00:18]}  Bxc6 {[%clk 0:00:41]} 29. Rxc6 {[%clk 0:00:19]}  Re4 {[%clk 0:00:38]} 30. Qd2 {[%clk 0:00:17]}  Rae8 {[%clk 0:00:37]} 31. Rxc7 {[%clk 0:00:17]}  Rxe3 {[%clk 0:00:36]} 32. h3 {[%clk 0:00:16]}  Qe4 {[%clk 0:00:32]} 33. Rd7 {[%clk 0:00:11]}  Rd3 {[%clk 0:00:26]} 34. Qa5 {[%clk 0:00:09]}  Rd1+ {[%clk 0:00:21]} 35. Kh2 {[%clk 0:00:09]}  Qe1 {[%clk 0:00:20]} 36. Qxe1 {[%clk 0:00:08]}  Rexe1 {[%clk 0:00:21]} 37. Rxa7 {[%clk 0:00:08]}  d4 {[%clk 0:00:20]} 38. Rc2 {[%clk 0:00:08]}  Re8 {[%clk 0:00:19]} 39. Rcc7 {[%clk 0:00:08]}  Rd8 {[%clk 0:00:18]} 40. Rg7+ {[%clk 0:00:07]}  Kf8 {[%clk 0:00:17]} 41. Rgf7+ {[%clk 0:00:08]}  Kg8 {[%clk 0:00:17]} 42. Rg7+ {[%clk 0:00:08]}  Kf8 {[%clk 0:00:17]} 43. Rxh7 {[%clk 0:00:09]}  Kg8 {[%clk 0:00:17]} 44. Rad7 {[%clk 0:00:09]}  Rxd7 {[%clk 0:00:17]} 45. Rxd7 {[%clk 0:00:09]}  d3 {[%clk 0:00:17]} 46. a4 {[%clk 0:00:08]}  d2 {[%clk 0:00:17]} 47. Kg3 {[%clk 0:00:08]}  Rb1 {[%clk 0:00:17]} 48. Rxd2 {[%clk 0:00:07]}  Rxb3+ {[%clk 0:00:17]} 49. Kg4 {[%clk 0:00:08]}  Ra3 {[%clk 0:00:17]} 50. Rd4 {[%clk 0:00:07]}  Kg7 {[%clk 0:00:16]} 51. Rd7+ {[%clk 0:00:07]}  Kh6 {[%clk 0:00:16]} 52. Ra7 {[%clk 0:00:07]}  f5+ {[%clk 0:00:15]} 53. Kh4 {[%clk 0:00:07]}  Ra2 {[%clk 0:00:14]} 54. g4 {[%clk 0:00:07]}  fxg4 {[%clk 0:00:12]} 55. hxg4 {[%clk 0:00:08]}  g5+ {[%clk 0:00:12]} 56. fxg5+ {[%clk 0:00:07]}  Kg6 {[%clk 0:00:12]} 57. Ra6+ {[%clk 0:00:08]}  Kg7 {[%clk 0:00:12]} 58. Kg3 {[%clk 0:00:08]}  Ra3+ {[%clk 0:00:11]} 59. Kf4 {[%clk 0:00:08]}  Ra1 {[%clk 0:00:11]} 60. Ra7+ {[%clk 0:00:08]}  Kg6 {[%clk 0:00:10]} 61. Ra6+ {[%clk 0:00:08]}  Kg7 {[%clk 0:00:11]} 62. a5 {[%clk 0:00:08]}  Ra4+ {[%clk 0:00:10]} 63. Kf5 {[%clk 0:00:08]}  Ra1 {[%clk 0:00:10]} 64. Ra7+ {[%clk 0:00:08]}  Kf8 {[%clk 0:00:09]} 65. Kg6 {[%clk 0:00:08]}  Ra4 {[%clk 0:00:08]} 66. Ra8+ {[%clk 0:00:09]}  Ke7 {[%clk 0:00:08]} 67. Kg7 {[%clk 0:00:09]}  Rxg4 {[%clk 0:00:07]} 68. g6 {[%clk 0:00:10]}  Ke6 {[%clk 0:00:06]} 69. a6 {[%clk 0:00:09]}  Kf5 {[%clk 0:00:06]} 70. Rf8+ {[%clk 0:00:09]}  Kg5 {[%clk 0:00:05]} 71. a7 {[%clk 0:00:09]} 1-0


[Site "https://www.chess.com"]

[Event "Titled Tuesday Blitz March 29 Late 2022"]
[White "Chernobay, Artem"]
[Black "Toncheva, Nadya"]
[WhiteFideId "4167406"]
[BlackFideId "2924056"]
[WhiteElo "2473"]
[BlackElo "1884"]
[Result "1-0"]
[Round "09"]
[TimeControl "180+1"]
[Date "2022.03.30"]
[WhiteClock "0:00:12"]
[BlackClock "0:00:01"]

1. e4 {[%clk 0:03:00]}  Nf6 {[%clk 0:02:58]} 2. e5 {[%clk 0:03:00]}  Nd5 {[%clk 0:02:59]} 3. d4 {[%clk 0:03:01]}  b5 {[%clk 0:02:59]} 4. Bxb5 {[%clk 0:02:44]}  c5 {[%clk 0:02:58]} 5. Bc4 {[%clk 0:02:25]}  Bb7 {[%clk 0:02:32]} 6. dxc5 {[%clk 0:02:10]}  e6 {[%clk 0:02:31]} 7. Nf3 {[%clk 0:02:06]}  Bxc5 {[%clk 0:02:26]} 8. O-O {[%clk 0:02:04]}  O-O {[%clk 0:02:23]} 9. Nbd2 {[%clk 0:02:01]}  Ne7 {[%clk 0:02:08]} 10. Qe2 {[%clk 0:01:53]}  Nbc6 {[%clk 0:02:08]} 11. Ne4 {[%clk 0:01:52]}  Qb6 {[%clk 0:02:02]} 12. c3 {[%clk 0:01:44]}  a5 {[%clk 0:01:53]} 13. Nxc5 {[%clk 0:01:38]}  Qxc5 {[%clk 0:01:51]} 14. Be3 {[%clk 0:01:38]}  Qxc4 {[%clk 0:01:50]} 15. Qxc4 {[%clk 0:01:37]}  Ba6 {[%clk 0:01:51]} 16. Qg4 {[%clk 0:01:33]}  Bxf1 {[%clk 0:01:51]} 17. Rxf1 {[%clk 0:01:33]}  Rfb8 {[%clk 0:01:51]} 18. b3 {[%clk 0:01:30]}  a4 {[%clk 0:01:51]} 19. b4 {[%clk 0:01:27]}  Nd5 {[%clk 0:01:50]} 20. Bh6 {[%clk 0:01:26]}  g6 {[%clk 0:01:50]} 21. Qh4 {[%clk 0:01:22]}  Nce7 {[%clk 0:01:46]} 22. g4 {[%clk 0:01:19]}  Rc8 {[%clk 0:01:43]} 23. Bg5 {[%clk 0:01:12]}  Rxc3 {[%clk 0:01:37]} 24. Bxe7 {[%clk 0:01:11]}  Rxf3 {[%clk 0:01:37]} 25. Rc1 {[%clk 0:01:03]}  Nf4 {[%clk 0:01:31]} 26. Rc4 {[%clk 0:00:54]}  h5 {[%clk 0:01:11]} 27. Bf6 {[%clk 0:00:47]}  a3 {[%clk 0:00:55]} 28. b5 {[%clk 0:00:41]}  Rb8 {[%clk 0:00:39]} 29. b6 {[%clk 0:00:37]}  Kh7 {[%clk 0:00:22]} 30. Rb4 {[%clk 0:00:28]}  Rc8 {[%clk 0:00:21]} 31. Rb1 {[%clk 0:00:26]}  Rfc3 {[%clk 0:00:17]} 32. f3 {[%clk 0:00:20]}  Rc2 {[%clk 0:00:15]} 33. b7 {[%clk 0:00:19]}  Rg2+ {[%clk 0:00:11]} 34. Kh1 {[%clk 0:00:18]}  Rb8 {[%clk 0:00:08]} 35. Qg5 {[%clk 0:00:17]}  Rb2 {[%clk 0:00:06]} 36. Rg1 {[%clk 0:00:15]}  Nh3 {[%clk 0:00:06]} 37. Qc1 {[%clk 0:00:12]}  Nf2+ {[%clk 0:00:05]} 38. Kg2 {[%clk 0:00:12]}  Nd3+ {[%clk 0:00:06]} 39. Kg3 {[%clk 0:00:12]}  Nxc1 {[%clk 0:00:05]} 40. Rxc1 {[%clk 0:00:13]}  R2xb7 {[%clk 0:00:04]} 41. Rc3 {[%clk 0:00:13]}  hxg4 {[%clk 0:00:05]} 42. fxg4 {[%clk 0:00:13]}  Kg8 {[%clk 0:00:01]} 43. Kf4 {[%clk 0:00:12]} 1-0


[Site "https://www.chess.com"]

[Event "Titled Tuesday Blitz March 29 Late 2022"]
[White "Estrada Nieto, Julian"]
[Black "Eames, Robert S"]
[WhiteFideId "5101018"]
[BlackFideId "408743"]
[WhiteElo "2246"]
[BlackElo "2105"]
[Result "1-0"]
[Round "09"]
[TimeControl "180+1"]
[Date "2022.03.30"]
[WhiteClock "0:00:52"]
[BlackClock "0:00:52"]

1. e4 {[%clk 0:03:00]}  e6 {[%clk 0:02:57]} 2. d4 {[%clk 0:03:00]}  d5 {[%clk 0:02:57]} 3. Nd2 {[%clk 0:03:00]}  Nf6 {[%clk 0:02:55]} 4. e5 {[%clk 0:03:00]}  Nfd7 {[%clk 0:02:54]} 5. Bd3 {[%clk 0:03:01]}  c5 {[%clk 0:02:54]} 6. c3 {[%clk 0:03:01]}  Nc6 {[%clk 0:02:54]} 7. Ne2 {[%clk 0:03:02]}  cxd4 {[%clk 0:02:52]} 8. cxd4 {[%clk 0:03:02]}  f6 {[%clk 0:02:52]} 9. exf6 {[%clk 0:03:03]}  Nxf6 {[%clk 0:02:52]} 10. Nf3 {[%clk 0:03:03]}  Bd6 {[%clk 0:02:38]} 11. O-O {[%clk 0:03:02]}  O-O {[%clk 0:02:37]} 12. Bf4 {[%clk 0:03:02]}  Ne4 {[%clk 0:02:30]} 13. Bxd6 {[%clk 0:03:01]}  Qxd6 {[%clk 0:02:30]} 14. Ng3 {[%clk 0:03:00]}  Nf6 {[%clk 0:02:15]} 15. Re1 {[%clk 0:02:53]}  Ng4 {[%clk 0:02:11]} 16. h3 {[%clk 0:02:43]}  Nh6 {[%clk 0:02:02]} 17. Ne5 {[%clk 0:02:37]}  Nf5 {[%clk 0:01:57]} 18. Bxf5 {[%clk 0:02:29]}  exf5 {[%clk 0:01:55]} 19. f4 {[%clk 0:02:22]}  Nd8 {[%clk 0:01:45]} 20. Rc1 {[%clk 0:02:16]}  b6 {[%clk 0:01:42]} 21. Qd2 {[%clk 0:02:13]}  Ba6 {[%clk 0:01:39]} 22. a3 {[%clk 0:01:45]}  Rc8 {[%clk 0:01:30]} 23. Rxc8 {[%clk 0:01:43]}  Bxc8 {[%clk 0:01:29]} 24. Rc1 {[%clk 0:01:43]}  Ba6 {[%clk 0:01:24]} 25. Qe3 {[%clk 0:01:26]}  g6 {[%clk 0:01:22]} 26. Rc3 {[%clk 0:01:22]}  Re8 {[%clk 0:01:20]} 27. Qc1 {[%clk 0:01:18]}  Ne6 {[%clk 0:01:13]} 28. Rc6 {[%clk 0:01:11]}  Qe7 {[%clk 0:01:12]} 29. Qe3 {[%clk 0:01:08]}  Qh4 {[%clk 0:01:05]} 30. Nxg6 {[%clk 0:00:58]}  hxg6 {[%clk 0:00:58]} 31. Rxe6 {[%clk 0:00:58]}  Rxe6 {[%clk 0:00:53]} 32. Qxe6+ {[%clk 0:00:58]}  Kg7 {[%clk 0:00:54]} 33. Qe5+ {[%clk 0:00:54]}  Kh6 {[%clk 0:00:52]} 34. Qh8# {[%clk 0:00:52]} 1-0


[Site "https://www.chess.com"]

[Event "Titled Tuesday Blitz March 29 Late 2022"]
[White "Golubev, Mikhail"]
[Black "Erdogdu, Mert"]
[WhiteFideId "14100983"]
[BlackFideId "6301495"]
[WhiteElo "2374"]
[BlackElo "2485"]
[Result "0-1"]
[Round "09"]
[TimeControl "180+1"]
[Date "2022.03.29"]
[WhiteClock "0:00:11"]
[BlackClock "0:01:00"]

1. e4 {[%clk 0:02:20]}  c5 {[%clk 0:02:59]} 2. Nf3 {[%clk 0:02:20]}  d6 {[%clk 0:02:59]} 3. d4 {[%clk 0:02:20]}  cxd4 {[%clk 0:03:00]} 4. Nxd4 {[%clk 0:02:21]}  Nf6 {[%clk 0:03:00]} 5. Nc3 {[%clk 0:02:22]}  a6 {[%clk 0:03:00]} 6. Bc4 {[%clk 0:02:22]}  e6 {[%clk 0:03:00]} 7. O-O {[%clk 0:02:23]}  Be7 {[%clk 0:02:58]} 8. Bb3 {[%clk 0:02:22]}  O-O {[%clk 0:02:50]} 9. f4 {[%clk 0:02:21]}  Nbd7 {[%clk 0:02:47]} 10. Be3 {[%clk 0:02:07]}  Nc5 {[%clk 0:02:47]} 11. e5 {[%clk 0:01:55]}  dxe5 {[%clk 0:02:45]} 12. fxe5 {[%clk 0:01:56]}  Nfd7 {[%clk 0:02:45]} 13. Qh5 {[%clk 0:01:41]}  g6 {[%clk 0:02:36]} 14. Qe2 {[%clk 0:01:39]}  Bg5 {[%clk 0:02:26]} 15. Rad1 {[%clk 0:01:33]}  Qe7 {[%clk 0:02:15]} 16. Bxg5 {[%clk 0:01:25]}  Qxg5 {[%clk 0:02:15]} 17. Nf3 {[%clk 0:01:25]}  Qe7 {[%clk 0:02:00]} 18. Qe3 {[%clk 0:01:21]}  b5 {[%clk 0:01:52]} 19. Qh6 {[%clk 0:01:20]}  Nxb3 {[%clk 0:01:26]} 20. Ng5 {[%clk 0:01:02]}  f5 {[%clk 0:01:21]} 21. exf6 {[%clk 0:00:47]}  Nxf6 {[%clk 0:01:17]} 22. axb3 {[%clk 0:00:18]}  Bb7 {[%clk 0:01:14]} 23. Rde1 {[%clk 0:00:18]}  e5 {[%clk 0:01:05]} 24. Re3 {[%clk 0:00:15]}  Ng4 {[%clk 0:00:59]} 25. Rxf8+ {[%clk 0:00:11]}  Rxf8 {[%clk 0:01:00]} 0-1


[Site "https://www.chess.com"]

[Event "Titled Tuesday Blitz March 29 Late 2022"]
[White "Gurevich, Dmitry"]
[Black "Lin, Dachey"]
[WhiteFideId "2000407"]
[BlackFideId "2029650"]
[WhiteElo "2506"]
[BlackElo "2313"]
[Result "0-1"]
[Round "09"]
[TimeControl "180+1"]
[Date "2022.03.29"]
[WhiteClock "0:00:03"]
[BlackClock "0:00:34"]

1. d4 {[%clk 0:03:00]}  g6 {[%clk 0:03:00]} 2. c4 {[%clk 0:03:00]}  Bg7 {[%clk 0:03:01]} 3. e4 {[%clk 0:02:59]}  c6 {[%clk 0:03:01]} 4. Nc3 {[%clk 0:02:58]}  d6 {[%clk 0:03:00]} 5. Nf3 {[%clk 0:02:57]}  e5 {[%clk 0:03:00]} 6. Be2 {[%clk 0:02:54]}  Qc7 {[%clk 0:02:58]} 7. d5 {[%clk 0:02:51]}  Ne7 {[%clk 0:02:57]} 8. h4 {[%clk 0:02:49]}  h5 {[%clk 0:02:55]} 9. Be3 {[%clk 0:02:45]}  Nd7 {[%clk 0:02:54]} 10. Rc1 {[%clk 0:02:44]}  Nf6 {[%clk 0:02:54]} 11. O-O {[%clk 0:02:31]}  Ng4 {[%clk 0:02:54]} 12. Bd2 {[%clk 0:02:27]}  O-O {[%clk 0:02:54]} 13. b4 {[%clk 0:02:24]}  a5 {[%clk 0:02:53]} 14. a3 {[%clk 0:02:23]}  Bd7 {[%clk 0:02:35]} 15. c5 {[%clk 0:02:14]}  Rfd8 {[%clk 0:02:19]} 16. dxc6 {[%clk 0:01:58]}  bxc6 {[%clk 0:02:06]} 17. Bg5 {[%clk 0:01:44]}  Be6 {[%clk 0:01:59]} 18. cxd6 {[%clk 0:01:38]}  Rxd6 {[%clk 0:01:59]} 19. Nb5 {[%clk 0:01:33]}  Rxd1 {[%clk 0:01:50]} 20. Nxc7 {[%clk 0:01:33]}  Rxf1+ {[%clk 0:01:30]} 21. Kxf1 {[%clk 0:01:31]}  Ra7 {[%clk 0:01:31]} 22. Nxe6 {[%clk 0:01:27]}  fxe6 {[%clk 0:01:32]} 23. Bxe7 {[%clk 0:01:20]}  Rxe7 {[%clk 0:01:33]} 24. Rxc6 {[%clk 0:01:20]}  axb4 {[%clk 0:01:33]} 25. axb4 {[%clk 0:01:19]}  Ra7 {[%clk 0:01:32]} 26. Rc1 {[%clk 0:01:16]}  Nf6 {[%clk 0:01:26]} 27. Nxe5 {[%clk 0:01:09]}  Nxe4 {[%clk 0:01:26]} 28. Nxg6 {[%clk 0:01:07]}  Bd4 {[%clk 0:01:26]} 29. Bxh5 {[%clk 0:00:49]}  Ra2 {[%clk 0:01:24]} 30. Kg1 {[%clk 0:00:37]}  Bxf2+ {[%clk 0:01:19]} 31. Kh2 {[%clk 0:00:35]}  Bg3+ {[%clk 0:01:17]} 32. Kh3 {[%clk 0:00:31]}  Bd6 {[%clk 0:01:18]} 33. Kg4 {[%clk 0:00:21]}  Nf6+ {[%clk 0:01:03]} 34. Kf3 {[%clk 0:00:18]}  Nxh5 {[%clk 0:01:03]} 35. Rc6 {[%clk 0:00:16]}  Ra3+ {[%clk 0:00:54]} 36. Kg4 {[%clk 0:00:14]}  Nf6+ {[%clk 0:00:50]} 37. Kg5 {[%clk 0:00:14]}  Kg7 {[%clk 0:00:51]} 38. g4 {[%clk 0:00:09]}  Rd3 {[%clk 0:00:36]} 39. Nf4 {[%clk 0:00:04]}  Ne4+ {[%clk 0:00:34]} 40. Kh5 {[%clk 0:00:03]}  Ng3+ {[%clk 0:00:34]} 0-1


[Site "https://www.chess.com"]

[Event "Titled Tuesday Blitz March 29 Late 2022"]
[White "Jaferian, Koosha"]
[Black "Batsiashvili, Nino"]
[WhiteFideId "12507440"]
[BlackFideId "13602993"]
[WhiteElo "2030"]
[BlackElo "2192"]
[Result "1-0"]
[Round "09"]
[TimeControl "180+1"]
[Date "2022.03.29"]
[WhiteClock "0:00:11"]
[BlackClock "0:00:01"]

1. Nf3 {[%clk 0:02:59]}  d5 {[%clk 0:02:57]} 2. b3 {[%clk 0:03:00]}  c5 {[%clk 0:02:55]} 3. e3 {[%clk 0:03:00]}  Nc6 {[%clk 0:02:55]} 4. Bb2 {[%clk 0:02:57]}  Nf6 {[%clk 0:02:56]} 5. Be2 {[%clk 0:02:57]}  e6 {[%clk 0:02:56]} 6. O-O {[%clk 0:02:57]}  Be7 {[%clk 0:02:56]} 7. d4 {[%clk 0:02:57]}  O-O {[%clk 0:02:56]} 8. dxc5 {[%clk 0:02:57]}  Bxc5 {[%clk 0:02:56]} 9. c4 {[%clk 0:02:57]}  dxc4 {[%clk 0:02:53]} 10. Bxc4 {[%clk 0:02:58]}  a6 {[%clk 0:02:43]} 11. Qe2 {[%clk 0:02:51]}  b5 {[%clk 0:02:42]} 12. Bd3 {[%clk 0:02:51]}  Bb7 {[%clk 0:02:42]} 13. a3 {[%clk 0:02:47]}  Qe7 {[%clk 0:02:31]} 14. b4 {[%clk 0:02:47]}  Bb6 {[%clk 0:02:28]} 15. Rd1 {[%clk 0:02:46]}  e5 {[%clk 0:02:27]} 16. Bc2 {[%clk 0:02:25]}  Rac8 {[%clk 0:02:13]} 17. Nc3 {[%clk 0:02:25]}  h6 {[%clk 0:02:07]} 18. Rac1 {[%clk 0:02:25]}  e4 {[%clk 0:02:00]} 19. Nd2 {[%clk 0:02:20]}  Ne5 {[%clk 0:01:59]} 20. Ncxe4 {[%clk 0:01:47]}  Nxe4 {[%clk 0:01:55]} 21. Bxe4 {[%clk 0:01:46]}  Bxe4 {[%clk 0:01:51]} 22. Nxe4 {[%clk 0:01:47]}  Nc4 {[%clk 0:01:47]} 23. Ng3 {[%clk 0:01:43]}  Nxb2 {[%clk 0:01:23]} 24. Qxb2 {[%clk 0:01:44]}  Rxc1 {[%clk 0:01:18]} 25. Rxc1 {[%clk 0:01:43]}  Rd8 {[%clk 0:01:16]} 26. Nf5 {[%clk 0:01:27]}  Qg5 {[%clk 0:01:13]} 27. Qe5 {[%clk 0:01:22]}  Kh7 {[%clk 0:00:49]} 28. Qe4 {[%clk 0:01:09]}  g6 {[%clk 0:00:47]} 29. Ng3 {[%clk 0:01:08]}  Qf6 {[%clk 0:00:42]} 30. h3 {[%clk 0:00:52]}  Rd2 {[%clk 0:00:40]} 31. Rf1 {[%clk 0:00:52]}  Ra2 {[%clk 0:00:38]} 32. Qd3 {[%clk 0:00:47]}  Kg7 {[%clk 0:00:29]} 33. Ne4 {[%clk 0:00:44]}  Qe5 {[%clk 0:00:25]} 34. Nd2 {[%clk 0:00:29]}  Qb2 {[%clk 0:00:18]} 35. Nf3 {[%clk 0:00:29]}  Rxa3 {[%clk 0:00:18]} 36. Qd6 {[%clk 0:00:25]}  Ba7 {[%clk 0:00:14]} 37. Ne5 {[%clk 0:00:22]}  Ra2 {[%clk 0:00:12]} 38. Qe7 {[%clk 0:00:21]}  Qb3 {[%clk 0:00:08]} 39. Qxa7 {[%clk 0:00:20]}  Qe6 {[%clk 0:00:08]} 40. Qd4 {[%clk 0:00:20]}  Kh7 {[%clk 0:00:07]} 41. Nd3 {[%clk 0:00:17]}  a5 {[%clk 0:00:08]} 42. bxa5 {[%clk 0:00:17]}  Rxa5 {[%clk 0:00:09]} 43. Nf4 {[%clk 0:00:17]}  Qf5 {[%clk 0:00:08]} 44. Qb4 {[%clk 0:00:16]}  Ra4 {[%clk 0:00:09]} 45. Qf8 {[%clk 0:00:14]}  g5 {[%clk 0:00:09]} 46. Nh5 {[%clk 0:00:13]}  Qg6 {[%clk 0:00:08]} 47. g4 {[%clk 0:00:14]}  Ra2 {[%clk 0:00:07]} 48. Rc1 {[%clk 0:00:13]}  Rb2 {[%clk 0:00:03]} 49. Qd8 {[%clk 0:00:09]}  b4 {[%clk 0:00:02]} 50. Nf6+ {[%clk 0:00:10]}  Kg7 {[%clk 0:00:01]} 51. Nh5+ {[%clk 0:00:11]}  Kh7 {[%clk 0:00:01]} 52. Qd4 {[%clk 0:00:11]}  Rb3 {[%clk 0:00:01]} 53. Nf6+ {[%clk 0:00:11]} 1-0


[Site "https://www.chess.com"]

[Event "Titled Tuesday Blitz March 29 Late 2022"]
[White "Janaszak, Dawid"]
[Black "Sliwicki, Damian"]
[WhiteFideId "1119206"]
[BlackFideId "1127128"]
[WhiteElo "2199"]
[BlackElo "2067"]
[Result "0-1"]
[Round "09"]
[TimeControl "180+1"]
[Date "2022.03.30"]
[WhiteClock "0:00:03"]
[BlackClock "0:00:35"]

1. e4 {[%clk 0:03:00]}  c5 {[%clk 0:02:58]} 2. Nc3 {[%clk 0:03:00]}  g6 {[%clk 0:02:53]} 3. d4 {[%clk 0:02:57]}  cxd4 {[%clk 0:02:53]} 4. Qxd4 {[%clk 0:02:58]}  Nf6 {[%clk 0:02:53]} 5. Be3 {[%clk 0:02:58]}  Nc6 {[%clk 0:02:52]} 6. Qd2 {[%clk 0:02:58]}  Bg7 {[%clk 0:02:40]} 7. Bh6 {[%clk 0:02:50]}  O-O {[%clk 0:02:37]} 8. f3 {[%clk 0:02:45]}  Qa5 {[%clk 0:02:26]} 9. O-O-O {[%clk 0:02:39]}  d6 {[%clk 0:02:19]} 10. Nge2 {[%clk 0:02:25]}  Be6 {[%clk 0:02:16]} 11. Bxg7 {[%clk 0:02:12]}  Kxg7 {[%clk 0:02:03]} 12. Kb1 {[%clk 0:02:11]}  Rfc8 {[%clk 0:01:58]} 13. Nf4 {[%clk 0:02:11]}  Ne5 {[%clk 0:01:49]} 14. h4 {[%clk 0:01:56]}  Bc4 {[%clk 0:01:38]} 15. Bd3 {[%clk 0:01:50]}  b5 {[%clk 0:01:32]} 16. Bxc4 {[%clk 0:00:48]}  Nxc4 {[%clk 0:01:28]} 17. Qe1 {[%clk 0:00:44]}  Qb4 {[%clk 0:01:20]} 18. Nd3 {[%clk 0:00:39]}  Na3+ {[%clk 0:01:09]} 19. Kc1 {[%clk 0:00:39]}  Qa5 {[%clk 0:01:09]} 20. Rd2 {[%clk 0:00:19]}  Rxc3 {[%clk 0:01:05]} 21. bxc3 {[%clk 0:00:19]}  Qxc3 {[%clk 0:01:06]} 22. Nb2 {[%clk 0:00:19]}  Nc4 {[%clk 0:01:02]} 23. Kd1 {[%clk 0:00:07]}  Nxd2 {[%clk 0:00:55]} 24. Nd3 {[%clk 0:00:05]}  Nb1 {[%clk 0:00:47]} 25. Kc1 {[%clk 0:00:06]}  Qxe1+ {[%clk 0:00:45]} 26. Rxe1 {[%clk 0:00:07]}  Nc3 {[%clk 0:00:46]} 27. Kb2 {[%clk 0:00:07]}  Rc8 {[%clk 0:00:45]} 28. g4 {[%clk 0:00:05]}  Nd7 {[%clk 0:00:45]} 29. Nb4 {[%clk 0:00:04]}  a5 {[%clk 0:00:43]} 30. Nd3 {[%clk 0:00:03]}  Ne5 {[%clk 0:00:42]} 31. Nxe5 {[%clk 0:00:02]}  dxe5 {[%clk 0:00:43]} 32. a3 {[%clk 0:00:02]}  Na4+ {[%clk 0:00:42]} 33. Kc1 {[%clk 0:00:01]}  Rc3 {[%clk 0:00:43]} 34. Rd1 {[%clk 0:00:02]}  Rxa3 {[%clk 0:00:40]} 35. Rd7 {[%clk 0:00:03]}  Rxf3 {[%clk 0:00:37]} 36. Rxe7 {[%clk 0:00:03]}  Nc3 {[%clk 0:00:35]} 0-1


[Site "https://www.chess.com"]

[Event "Titled Tuesday Blitz March 29 Late 2022"]
[White "Kosteniuk, Alexandra"]
[Black "Karttunen, Mika"]
[WhiteFideId "4128125"]
[BlackFideId "502081"]
[WhiteElo "2469"]
[BlackElo "2343"]
[Result "1/2-1/2"]
[Round "09"]
[TimeControl "180+1"]
[Date "2022.03.29"]
[WhiteClock "0:00:18"]
[BlackClock "0:00:10"]

1. e4 {[%clk 0:03:00]}  c5 {[%clk 0:02:59]} 2. c3 {[%clk 0:03:00]}  d5 {[%clk 0:02:59]} 3. exd5 {[%clk 0:03:00]}  Qxd5 {[%clk 0:03:00]} 4. d4 {[%clk 0:03:01]}  Nf6 {[%clk 0:02:58]} 5. Nf3 {[%clk 0:03:01]}  e6 {[%clk 0:02:58]} 6. Be2 {[%clk 0:03:01]}  Nc6 {[%clk 0:02:58]} 7. O-O {[%clk 0:03:00]}  Be7 {[%clk 0:02:58]} 8. c4 {[%clk 0:03:01]}  Qd8 {[%clk 0:02:57]} 9. dxc5 {[%clk 0:03:00]}  Qxd1 {[%clk 0:02:56]} 10. Rxd1 {[%clk 0:03:00]}  Bxc5 {[%clk 0:02:57]} 11. Nc3 {[%clk 0:03:01]}  O-O {[%clk 0:02:56]} 12. a3 {[%clk 0:02:53]}  a5 {[%clk 0:02:45]} 13. Na4 {[%clk 0:02:45]}  Ba7 {[%clk 0:02:37]} 14. Bf4 {[%clk 0:02:40]}  Ne4 {[%clk 0:02:33]} 15. Be3 {[%clk 0:02:36]}  Bxe3 {[%clk 0:02:23]} 16. fxe3 {[%clk 0:02:37]}  e5 {[%clk 0:01:48]} 17. Nb6 {[%clk 0:02:25]}  Rb8 {[%clk 0:01:48]} 18. Nd7 {[%clk 0:02:19]}  Bxd7 {[%clk 0:01:48]} 19. Rxd7 {[%clk 0:02:20]}  Rfd8 {[%clk 0:01:25]} 20. Rad1 {[%clk 0:02:18]}  f6 {[%clk 0:01:17]} 21. R1d5 {[%clk 0:02:01]}  Rxd7 {[%clk 0:01:13]} 22. Rxd7 {[%clk 0:02:01]}  Nc5 {[%clk 0:01:14]} 23. Rd5 {[%clk 0:02:01]}  b6 {[%clk 0:01:11]} 24. Rd6 {[%clk 0:01:59]}  Rc8 {[%clk 0:01:11]} 25. Nd2 {[%clk 0:01:56]}  Kf8 {[%clk 0:01:08]} 26. Bf3 {[%clk 0:01:56]}  Rd8 {[%clk 0:00:52]} 27. Rxc6 {[%clk 0:01:17]}  Rxd2 {[%clk 0:00:52]} 28. b4 {[%clk 0:01:17]}  axb4 {[%clk 0:00:41]} 29. axb4 {[%clk 0:01:18]}  Nd3 {[%clk 0:00:41]} 30. Rxb6 {[%clk 0:01:18]}  e4 {[%clk 0:00:42]} 31. Bh5 {[%clk 0:01:05]}  g6 {[%clk 0:00:42]} 32. Rxf6+ {[%clk 0:01:01]}  Ke7 {[%clk 0:00:38]} 33. Rf1 {[%clk 0:00:56]}  gxh5 {[%clk 0:00:37]} 34. h4 {[%clk 0:00:56]}  Ke6 {[%clk 0:00:34]} 35. c5 {[%clk 0:00:50]}  Nxb4 {[%clk 0:00:32]} 36. Rf4 {[%clk 0:00:48]}  Ke5 {[%clk 0:00:32]} 37. Rf7 {[%clk 0:00:48]}  Rd5 {[%clk 0:00:25]} 38. Rxh7 {[%clk 0:00:47]}  Rxc5 {[%clk 0:00:26]} 39. Rxh5+ {[%clk 0:00:48]}  Kd6 {[%clk 0:00:26]} 40. Rxc5 {[%clk 0:00:45]}  Kxc5 {[%clk 0:00:26]} 41. h5 {[%clk 0:00:45]}  Kd6 {[%clk 0:00:22]} 42. Kf2 {[%clk 0:00:41]}  Nd5 {[%clk 0:00:18]} 43. h6 {[%clk 0:00:28]}  Nf6 {[%clk 0:00:17]} 44. Kg3 {[%clk 0:00:27]}  Ke5 {[%clk 0:00:17]} 45. Kh4 {[%clk 0:00:26]}  Nh7 {[%clk 0:00:17]} 46. Kh5 {[%clk 0:00:24]}  Kf5 {[%clk 0:00:15]} 47. g3 {[%clk 0:00:22]}  Nf8 {[%clk 0:00:10]} 48. g4+ {[%clk 0:00:20]}  Kf6 {[%clk 0:00:11]} 49. g5+ {[%clk 0:00:21]}  Kf5 {[%clk 0:00:09]} 50. Kh4 {[%clk 0:00:21]}  Kg6 {[%clk 0:00:08]} 51. Kg4 {[%clk 0:00:21]}  Nh7 {[%clk 0:00:09]} 52. Kf4 {[%clk 0:00:20]}  Nxg5 {[%clk 0:00:09]} 53. h7 {[%clk 0:00:21]}  Nxh7 {[%clk 0:00:07]} 54. Kxe4 {[%clk 0:00:21]}  Kf6 {[%clk 0:00:07]} 55. Kd4 {[%clk 0:00:21]}  Ke6 {[%clk 0:00:08]} 56. e4 {[%clk 0:00:19]}  Ng5 {[%clk 0:00:08]} 57. e5 {[%clk 0:00:18]}  Nf7 {[%clk 0:00:09]} 58. Ke4 {[%clk 0:00:18]}  Nxe5 {[%clk 0:00:10]} 1/2-1/2


[Site "https://www.chess.com"]